bitfinex-derivatives/quotes_BNBF0:USTF0_20230901
["timestamp","ask_amount","ask_price","bid_price","bid_amount"]
[1693588667560,0.17255844,213.28,212.71,0.86353225]
[1693588668268,5.23503987,213.28,212.71,0.86353225]
[1693588668468,0.17255844,213.27,212.71,0.86353225]
[1693588669567,5.23503987,213.27,212.71,0.86353225]
[1693588669768,0.17255844,213.26,212.71,0.86353225]
[1693588672068,0.17255844,213.26,212.49,3.75832088]
[1693588672069,0.17255844,213.26,212.68,0.86353225]
[1693588672269,0.17255844,213.26,212.69,0.86379472]
[1693588672464,0.17255844,213.26,212.66,0.94061731]
[1693588672667,0.17255844,213.26,212.67,0.86379472]
[1693588673070,5.06248143,213.22,212.67,0.86379472]
[1693588673269,5.06248143,213.22,212.66,0.94061731]
[1693588673473,0.17255844,213.21,212.67,0.86379472]
[1693588674867,5.06248143,213.2,212.66,0.86379472]
[1693588675068,0.17255844,213.19,212.67,0.86379472]
[1693588675271,0.17255844,213.19,212.66,0.94061731]
[1693588675467,0.17255844,213.19,212.67,0.86379472]
[1693588676275,0.17255844,213.19,212.68,0.86379472]
[1693588676470,0.17255844,213.19,212.67,0.86379472]
[1693588676668,0.17255844,213.19,212.68,0.86379472]
[1693588676872,0.17255844,213.19,212.67,0.86379472]
[1693588677075,0.17255844,213.19,212.68,0.86379472]
[1693588677375,0.17255844,213.19,212.69,0.86379472]
[1693588677674,0.17255844,213.18,212.7,0.86379472]
[1693588677870,0.17255844,213.2,212.67,0.07682259]
[1693588678074,0.17255844,213.19,212.68,0.86379217]
[1693588678767,0.17255844,213.2,212.68,0.86379217]
[1693588678967,0.17255844,213.18,212.68,0.86379217]
[1693588679272,0.17255844,213.17,212.68,0.86379217]
[1693588679472,0.17255844,213.2,212.68,0.86379217]
[1693588679675,0.17255844,213.19,212.68,0.86379217]
[1693588679971,0.17255844,213.18,212.68,0.94061476]
[1693588680167,13.1624517,213.4,212.12,5.12150645]
[1693588680168,0.17255844,213.2,212.73,0.07682259]
[1693588680371,0.17255844,213.2,212.69,0.86379217]
[1693588680372,0.17255844,213.17,212.74,0.07682259]
[1693588680569,0.17255844,213.16,212.74,0.07682259]
[1693588680767,0.17255844,213.26,212.75,0.86379217]
[1693588680975,0.17255844,213.27,212.75,0.86379217]
[1693588681177,0.17255844,213.26,212.75,0.86379217]
[1693588681378,0.17255844,213.27,212.75,0.86379217]
[1693588681578,0.17255844,213.26,212.75,0.86379217]
[1693588681777,0.17255844,213.27,212.75,0.94061476]
[1693588681972,0.17255844,213.27,212.76,0.86379217]
[1693588682178,5.06248143,213.29,212.75,0.86379217]
[1693588682179,0.17255844,213.28,212.75,0.86379217]
[1693588682572,0.17255844,213.28,212.74,0.86379217]
[1693588682772,0.17255844,213.28,212.75,0.86379217]
[1693588682972,0.17255844,213.28,212.74,0.94061476]
[1693588683173,0.17255844,213.29,212.75,0.86379217]
[1693588683373,0.17255844,213.28,212.75,0.86379217]
[1693588683573,0.17255844,213.29,212.75,0.86379217]
[1693588683769,0.17255844,213.3,212.75,0.86379217]
[1693588683975,0.17255844,213.29,212.74,0.86379217]
[1693588684277,0.17255844,213.28,212.74,0.94061476]
[1693588684472,0.17255844,213.3,212.75,0.86379217]
[1693588684675,0.17255844,213.27,212.75,0.86379217]
[1693588684873,0.17255844,213.26,212.75,0.86379217]
[1693588685080,0.17255844,213.3,212.74,0.86379217]
[1693588685280,0.17255844,213.3,212.72,0.07682259]
[1693588685281,0.17255844,213.29,212.75,0.86379217]
[1693588685580,0.17255844,213.28,212.76,0.86379217]
[1693588685772,5.06248143,213.31,212.72,0.86379217]
[1693588685773,0.17255844,213.3,212.72,0.86379217]
[1693588686177,5.06248143,213.24,212.68,0.86379217]
[1693588686379,0.17255844,213.23,212.68,0.86379217]
[1693588686981,0.17255844,213.23,212.67,0.86379217]
[1693588687482,0.17255844,213.23,212.67,0.94061476]
[1693588687682,0.17255844,213.23,212.68,0.86379217]
[1693588688787,5.23503987,213.23,212.68,0.86379217]
[1693588688984,0.17255844,213.22,212.68,0.86379217]
[1693588689184,0.17255844,213.23,212.68,0.86379217]
[1693588689384,0.17255844,213.23,212.68,0.94061476]
[1693588689579,0.17255844,213.23,212.69,0.86379217]
[1693588690078,0.17255844,213.23,212.68,0.86379217]
[1693588690485,5.23503987,213.23,212.68,0.86379217]
[1693588690685,0.17255844,213.22,212.68,0.86379217]
[1693588690881,0.17255844,213.22,212.67,0.86379217]
[1693588691088,0.17255844,213.22,212.68,0.86379217]
[1693588691287,0.17255844,213.22,212.67,0.86379217]
[1693588691589,0.17255844,213.22,212.68,0.86379217]
[1693588691788,5.06248143,213.21,212.67,0.86379217]
[1693588692089,0.17255844,213.2,212.68,0.86379217]
[1693588692389,0.17255844,213.2,212.69,0.86379217]
[1693588692782,0.17255844,213.2,212.7,0.86379217]
[1693588693107,0.17255844,213.2,212.66,0.07682259]
[1693588693108,0.17255844,213.2,212.65,0.07682259]
[1693588693291,5.23503987,213.2,212.66,0.86383874]
[1693588693587,0.17255844,213.19,212.66,0.86383874]
[1693588693787,0.17255844,213.19,212.67,0.86383874]
[1693588693988,0.17255844,213.19,212.65,0.86383874]
[1693588694185,0.17255844,213.19,212.66,0.86383874]
[1693588694385,0.17255844,213.19,212.65,0.94066133]
[1693588694582,0.17255844,213.2,212.66,0.86383874]
[1693588696293,0.17255844,213.2,212.64,0.07682259]
[1693588696294,0.17255844,213.2,212.67,0.86383874]
[1693588696488,0.17255844,213.2,212.65,0.86383874]
[1693588696687,0.17255844,213.2,212.66,0.86383874]
[1693588696892,0.17255844,213.2,212.65,0.86383874]
[1693588697091,0.17255844,213.2,212.64,0.07682259]
[1693588697092,0.17255844,213.2,212.66,0.86383874]
[1693588697393,0.17255844,213.2,212.67,0.86383874]
[1693588697588,0.17255844,213.2,212.65,0.86383874]
[1693588697796,5.06248143,213.16,212.59,0.07682259]
[1693588698095,0.17255844,213.15,212.6,0.86405047]
[1693588698694,0.17255844,213.15,212.59,0.86405047]
[1693588698893,0.17255844,213.15,212.6,0.86405047]
[1693588699194,0.17255844,213.15,212.61,0.86405047]
[1693588699391,0.17255844,213.16,212.59,0.86405047]
[1693588700288,0.17255844,213.16,212.58,0.86405047]
[1693588700493,0.17255844,213.16,212.59,0.86405047]
[1693588700693,0.17255844,213.16,212.57,0.86405047]
[1693588700894,0.17255844,213.16,212.58,0.86405047]
[1693588701195,0.17255844,213.16,212.59,0.86405047]
[1693588701695,0.17255844,213.16,212.6,0.86405047]
[1693588701896,0.17255844,213.16,212.57,0.86405047]
[1693588702096,0.17255844,213.16,212.58,0.86405047]
[1693588702396,0.17255844,213.16,212.59,0.86405047]
[1693588702697,0.17255844,213.16,212.56,0.94087306]
[1693588702998,0.17255844,213.16,212.57,0.86405047]
[1693588703195,0.17255844,213.16,212.56,0.86405047]
[1693588703497,0.17255844,213.15,212.56,0.94087306]
[1693588703696,0.17255844,213.17,212.57,0.86405047]
[1693588704104,0.17255844,213.18,212.57,0.86405047]
[1693588704703,0.17255844,213.19,212.57,0.86405047]
[1693588704901,0.17255844,213.17,212.57,0.86405047]
[1693588705100,0.17255844,213.19,212.57,0.86405047]
[1693588705302,0.17255844,213.18,212.57,0.86405047]
[1693588705505,0.17255844,213.17,212.57,0.86405047]
[1693588705704,0.17255844,213.19,212.57,0.86405047]
[1693588706208,0.17255844,213.19,212.58,0.86405047]
[1693588706407,0.17255844,213.19,212.56,0.86405047]
[1693588706704,0.17255844,213.19,212.57,0.86405047]
[1693588706705,5.06248143,213.18,212.57,0.86405047]
[1693588706911,0.17255844,213.17,212.57,0.86405047]
[1693588707208,0.17255844,213.16,212.58,0.86405047]
[1693588707400,0.17255844,213.16,212.56,0.86405047]
[1693588707605,0.17255844,213.18,212.59,0.86405047]
[1693588707803,0.17255844,213.15,212.59,0.86405047]
[1693588708006,0.17255844,213.17,212.55,0.86405047]
[1693588708205,0.17255844,213.17,212.54,0.07682259]
[1693588708206,0.17255844,213.16,212.56,0.86405047]
[1693588708405,0.17255844,213.15,212.55,0.86405047]
[1693588708606,5.06248143,213.19,212.56,0.86405047]
[1693588708607,0.17255844,213.18,212.56,0.86405047]
[1693588708802,0.17255844,213.17,212.5,0.86405047]
[1693588709010,0.17255844,213.18,212.49,0.86405047]
[1693588709308,5.23503987,213.17,212.5,0.86405047]
[1693588709508,0.17255844,213.16,212.5,0.86405047]
[1693588709704,0.17255844,213.16,212.49,0.86405047]
[1693588709909,0.17255844,213.16,212.51,0.86405047]
[1693588710108,0.17255844,213.16,212.5,0.86405047]
[1693588710407,0.17255844,213.16,212.51,0.86405047]
[1693588710606,0.17255844,213.16,212.48,0.94087306]
[1693588710803,0.17255844,213.18,212.49,0.86405047]
[1693588711003,0.17255844,213.15,212.49,0.86405047]
[1693588711202,0.17255844,213.14,212.49,0.86405047]
[1693588711608,0.17255844,213.2,212.49,0.86405047]
[1693588711810,0.17255844,213.19,212.49,0.86405047]
[1693588712009,5.06248143,213.21,212.49,0.86405047]
[1693588712010,0.17255844,213.2,212.49,0.86405047]
[1693588712308,0.17255844,213.19,212.49,0.86405047]
[1693588712504,0.17255844,213.2,212.49,0.86405047]
[1693588712710,0.17255844,213.22,212.48,0.86405047]
[1693588712912,0.17255844,213.21,212.49,0.86405047]
[1693588713211,0.17255844,213.2,212.5,0.86405047]
[1693588713512,0.17255844,213.19,212.51,0.86405047]
[1693588713811,0.17255844,213.22,212.49,0.86405047]
[1693588714005,0.17255844,213.21,212.5,0.86405047]
[1693588714310,0.17255844,213.2,212.51,0.86405047]
[1693588714510,0.17255844,213.23,212.48,0.86405047]
[1693588714911,0.17255844,213.24,212.48,0.86405047]
[1693588715116,0.17255844,213.23,212.48,0.94087306]
[1693588715409,0.17255844,213.22,212.49,0.86405047]
[1693588715606,0.17255844,213.22,212.48,0.86405047]
[1693588715812,0.17255844,213.21,212.48,0.86405047]
[1693588716008,0.17255844,213.24,212.48,0.86405047]
[1693588716714,0.17255844,213.24,212.52,0.07682259]
[1693588716916,5.23503987,213.29,212.53,0.86405047]
[1693588717109,5.23503987,213.29,212.53,0.94087306]
[1693588717110,0.17255844,213.28,212.53,0.94087306]
[1693588717316,0.17255844,213.28,212.54,0.86405047]
[1693588717517,0.17255844,213.28,212.53,0.86405047]
[1693588717715,0.17255844,213.28,212.54,0.86405047]
[1693588717918,0.17255844,213.28,212.52,0.07682259]
[1693588717919,0.17255844,213.28,212.53,0.86405047]
[1693588718116,7.087474,213.27,212.54,0.86405047]
[1693588718314,0.17255844,213.26,212.49,0.86405047]
[1693588718521,5.06248143,213.23,212.5,0.86405047]
[1693588718717,0.17255844,213.22,212.5,0.86405047]
[1693588719422,0.17255844,213.23,212.5,0.86405047]
[1693588719622,0.17255844,213.22,212.5,0.86405047]
[1693588719823,0.17255844,213.23,212.5,0.86405047]
[1693588720521,0.17255844,213.23,212.51,0.07682259]
[1693588720721,5.06248143,213.22,212.52,0.86405047]
[1693588720921,0.17255844,213.21,212.52,0.86405047]
[1693588721121,0.17255844,213.21,212.51,0.86405047]
[1693588722424,0.17255844,213.21,212.51,0.94087306]
[1693588722623,0.17255844,213.21,212.52,0.86405047]
[1693588723424,5.23503987,213.21,212.52,0.86405047]
[1693588723624,0.17255844,213.2,212.52,0.94087306]
[1693588723820,0.17255844,213.2,212.53,0.86405047]
[1693588724025,0.17255844,213.19,212.53,0.86405047]
[1693588724327,0.17255844,213.18,212.53,0.86405047]
[1693588724522,5.23503987,213.21,212.54,0.07682259]
[1693588724719,0.17255844,213.2,212.55,0.86405047]
[1693588725325,0.17255844,213.2,212.54,0.94087306]
[1693588725525,0.17255844,213.2,212.55,0.86405047]
[1693588726224,0.17255844,213.2,212.54,0.86405047]
[1693588726426,0.17255844,213.2,212.55,0.86405047]
[1693588726820,0.17255844,213.2,212.54,0.86405047]
[1693588727022,0.17255844,213.2,212.55,0.86405047]
[1693588727225,0.17255844,213.2,212.56,0.86405047]
[1693588727426,5.06248143,213.17,212.54,0.86405047]
[1693588727626,0.17255844,213.16,212.55,0.86405047]
[1693588727920,0.17255844,213.16,212.56,0.86405047]
[1693588728126,0.17255844,213.16,212.54,0.86405047]
[1693588728328,0.17255844,213.16,212.55,0.86405047]
[1693588729422,5.23503987,213.16,212.55,0.94087306]
[1693588729626,0.17255844,213.15,212.56,0.94087306]
[1693588729826,0.17255844,213.15,212.57,0.94087306]
[1693588730026,0.17255844,213.16,212.58,0.86405047]
[1693588730326,0.17255844,213.15,212.58,0.86405047]
[1693588730534,0.17255844,213.16,212.58,0.86405047]
[1693588730728,0.17255844,213.15,212.58,0.86405047]
[1693588730928,5.06248143,213.18,212.58,0.86405047]
[1693588730929,0.17255844,213.17,212.58,0.86405047]
[1693588731120,0.17255844,213.16,212.58,0.94087306]
[1693588731323,0.17255844,213.17,212.59,0.86405047]
[1693588731524,5.06248143,213.15,212.6,0.07682259]
[1693588731825,0.17255844,213.14,212.6,0.07682259]
[1693588732226,0.17255844,213.14,212.59,0.07682259]
[1693588733226,5.06248143,213.13,212.59,0.07682259]
[1693588733429,0.17255844,213.12,212.58,0.07682259]
[1693588733629,0.17255844,213.12,212.59,0.07682259]
[1693588734133,0.17255844,213.12,212.6,0.07682259]
[1693588734524,0.17255844,213.12,212.58,0.07682259]
[1693588735332,0.17255844,213.12,212.59,0.07682259]
[1693588735528,0.17255844,213.12,212.58,0.07682259]
[1693588735732,5.06248143,213.1,212.59,0.07682259]
[1693588735930,0.17255844,213.09,212.59,0.07682259]
[1693588736432,0.17255844,213.09,212.6,0.07682259]
[1693588736628,0.17255844,213.1,212.6,0.07682259]
[1693588736832,0.17255844,213.09,212.61,0.07682259]
[1693588737030,0.17255844,213.11,212.61,0.07682259]
[1693588737227,0.17255844,213.1,212.61,0.07682259]
[1693588737431,0.17255844,213.1,212.55,0.15364519]
[1693588737432,0.17255844,213.09,212.62,0.07682259]
[1693588737733,0.17255844,213.12,212.62,0.07682259]
[1693588737934,0.17255844,213.11,212.62,0.07682259]
[1693588738228,0.17255844,213.1,212.62,0.07682259]
[1693588738536,0.17255844,213.09,212.62,0.07682259]
[1693588738728,0.17255844,213.11,212.62,0.07682259]
[1693588738930,0.17255844,213.1,212.62,0.07682259]
[1693588739131,0.17255844,213.11,212.62,0.07682259]
[1693588739331,5.06248143,213.1,212.64,0.07682259]
[1693588739531,0.17255844,213.09,212.64,0.07682259]
[1693588739932,0.17255844,213.09,212.63,0.07682259]
[1693588740138,0.17255844,213.09,212.64,0.07682259]
[1693588741535,5.06248143,213.08,212.66,0.07682259]
[1693588741735,0.17255844,213.07,212.65,0.07682259]
[1693588741936,0.17255844,213.07,212.71,0.07682259]
[1693588742136,0.17255844,213.12,212.71,0.07682259]
[1693588742336,0.17255844,213.11,212.71,0.07682259]
[1693588742537,0.17255844,213.12,212.71,0.07682259]
[1693588742835,0.17255844,213.11,212.72,0.07682259]
[1693588743038,0.17255844,213.13,212.72,0.07682259]
[1693588743641,0.17255844,213.13,212.69,0.07682259]
[1693588743842,0.17255844,213.15,212.69,0.07682259]
[1693588744042,0.17255844,213.14,212.69,0.07682259]
[1693588744342,0.17255844,213.13,212.69,0.07682259]
[1693588744640,0.17255844,213.12,212.69,0.07682259]
[1693588744833,0.17255844,213.16,212.69,0.07682259]
[1693588745039,0.17255844,213.15,212.69,0.07682259]
[1693588745239,0.17255844,213.16,212.67,0.07682259]
[1693588745542,0.17255844,213.15,212.66,0.07682259]
[1693588745742,0.17255844,213.16,212.66,0.07682259]
[1693588747246,0.17255844,213.16,212.65,0.07682259]
[1693588747439,0.17255844,213.16,212.64,0.07682259]
[1693588747944,0.17255844,213.16,212.63,0.07682259]
[1693588748143,5.23503987,213.16,212.63,0.07682259]
[1693588748343,0.17255844,213.15,212.63,0.07682259]
[1693588748646,0.17255844,213.15,212.62,0.07682259]
[1693588748843,0.17255844,213.15,212.63,0.86409487]
[1693588749344,0.17255844,213.15,212.6,0.07682259]
[1693588749539,0.17255844,213.15,212.61,0.86412522]
[1693588750243,5.23503987,213.15,212.61,0.94094781]
[1693588750443,5.23503987,213.15,212.62,0.86412522]
[1693588750637,0.17255844,213.14,212.62,0.86412522]
[1693588751045,0.17255844,213.14,212.63,0.07682259]
[1693588751345,0.17255844,213.14,212.62,0.94094781]
[1693588751539,0.17255844,213.17,212.64,0.86412522]
[1693588751742,0.17255844,213.17,212.62,0.07682259]
[1693588751743,0.17255844,213.13,212.63,0.86412522]
[1693588751944,0.17255844,213.16,212.64,0.86412522]
[1693588752145,0.17255844,213.15,212.63,0.86412522]
[1693588752347,0.17255844,213.18,212.64,0.86412522]
[1693588752648,0.17255844,213.17,212.67,0.07682259]
[1693588752841,0.17255844,213.17,212.65,0.86412522]
[1693588752842,0.17255844,213.16,212.68,0.94094781]
[1693588753047,0.17255844,213.15,212.69,0.86412522]
[1693588753246,7.087474,213.27,212.69,0.86412522]
[1693588753247,0.17255844,213.23,212.69,0.86412522]
[1693588753446,0.17255844,213.26,212.67,0.86412522]
[1693588753743,0.17255844,213.25,212.68,0.86412522]
[1693588753950,0.17255844,213.24,212.69,0.86412522]
[1693588754145,0.17255844,213.26,212.67,0.86412522]
[1693588754342,0.17255844,213.25,212.68,0.86412522]
[1693588754549,5.06248143,213.28,212.66,0.86412522]
[1693588754550,0.17255844,213.27,212.66,0.86412522]
[1693588754742,0.17255844,213.24,212.69,0.86412522]
[1693588754948,0.17255844,213.23,212.7,0.86412522]
[1693588755147,0.17255844,213.27,212.66,0.86412522]
[1693588755546,0.17255844,213.29,212.66,0.86412522]
[1693588755747,0.17255844,213.28,212.66,0.86412522]
[1693588755946,0.17255844,213.27,212.66,0.86412522]
[1693588756147,0.17255844,213.29,212.66,0.86412522]
[1693588756343,0.17255844,213.28,212.66,0.86412522]
[1693588756542,0.17255844,213.29,212.66,0.86412522]
[1693588756746,5.06248143,213.3,212.64,0.07682259]
[1693588756747,0.17255844,213.28,212.65,0.86412522]
[1693588756945,0.17255844,213.27,212.65,0.86412522]
[1693588757141,0.17255844,213.26,212.65,0.86412522]
[1693588757343,0.17255844,213.25,212.66,0.86412522]
[1693588757545,0.17255844,213.29,212.64,0.86412522]
[1693588757746,0.17255844,213.28,212.65,0.86412522]
[1693588758048,0.17255844,213.27,212.66,0.86412522]
[1693588758250,0.17255844,213.3,212.64,0.86412522]
[1693588758452,0.17255844,213.29,212.65,0.86412522]
[1693588758653,0.17255844,213.28,212.66,0.86412522]
[1693588758952,0.17255844,213.27,212.67,0.86412522]
[1693588759148,0.17255844,213.3,212.63,0.86412522]
[1693588759352,0.17255844,213.29,212.64,0.86412522]
[1693588759553,5.06248143,213.32,212.62,0.07682259]
[1693588759554,0.17255844,213.31,212.63,0.86412522]
[1693588759748,0.17255844,213.3,212.64,0.86412522]
[1693588759949,0.17255844,213.31,212.63,0.86412522]
[1693588760146,0.17255844,213.31,212.64,0.86412522]
[1693588760350,0.17255844,213.32,212.63,0.94094781]
[1693588760546,0.17255844,213.32,212.64,0.86412522]
[1693588761456,0.17255844,213.33,212.64,0.86412522]
[1693588761659,0.17255844,213.32,212.64,0.94094781]
[1693588761954,0.17255844,213.31,212.65,0.86412522]
[1693588762155,0.17255844,213.35,212.65,0.86412522]
[1693588763257,0.17255844,213.36,212.65,0.86412522]
[1693588763456,0.17255844,213.35,212.69,0.07682259]
[1693588763653,0.17255844,213.34,212.7,0.86412522]
[1693588763853,0.17255844,213.41,212.7,0.86412522]
[1693588764054,0.17255844,213.4,212.7,0.86412522]
[1693588764260,0.17255844,213.41,212.7,0.86412522]
[1693588764453,0.17255844,213.4,212.7,0.94094781]
[1693588764654,0.17255844,213.39,212.71,0.86412522]
[1693588764852,0.17255844,213.38,212.71,0.86412522]
[1693588765059,0.17255844,213.43,212.7,0.86412522]
[1693588765259,0.17255844,213.42,212.71,0.86412522]
[1693588765462,0.17255844,213.43,212.7,0.94094781]
[1693588765759,0.17255844,213.42,212.71,0.94094781]
[1693588765956,0.17255844,213.44,212.72,0.86412522]
[1693588766157,0.17255844,213.41,212.72,0.86412522]
[1693588766357,5.06248143,213.48,212.72,0.86412522]
[1693588766358,0.17255844,213.4,212.72,0.86412522]
[1693588766756,0.17255844,213.47,212.72,0.86412522]
[1693588767356,5.23503987,213.47,212.72,0.86412522]
[1693588767561,0.17255844,213.46,212.72,0.86412522]
[1693588768161,0.17255844,213.46,212.72,0.94094781]
[1693588768361,0.17255844,213.49,212.73,0.86412522]
[1693588768561,0.17255844,213.48,212.72,0.86412522]
[1693588768761,0.17255844,213.49,212.72,0.86412522]
[1693588768961,0.17255844,213.48,212.72,0.86412522]
[1693588769158,0.17255844,213.49,212.72,0.86412522]
[1693588769358,0.17255844,213.48,212.72,0.94094781]
[1693588769558,0.17255844,213.49,212.73,0.86412522]
[1693588770464,0.17255844,213.49,212.72,0.86412522]
[1693588770659,0.17255844,213.49,212.71,0.07682259]
[1693588770858,0.17255844,213.49,212.72,0.86412522]
[1693588771263,0.17255844,213.49,212.71,0.86412522]
[1693588771564,0.17255844,213.49,212.72,0.07682259]
[1693588771959,0.17255844,213.49,212.73,0.86412522]
[1693588772360,0.17255844,213.49,212.72,0.86412522]
[1693588772562,0.17255844,213.49,212.73,0.86412522]
[1693588772764,0.17255844,213.49,212.72,0.86412522]
[1693588773365,0.17255844,213.49,212.72,0.94094781]
[1693588773662,0.17255844,213.49,212.73,0.86412522]
[1693588773867,5.23503987,213.49,212.73,0.86412522]
[1693588774065,0.17255844,213.48,212.73,0.86412522]
[1693588774361,0.17255844,213.48,212.73,0.94094781]
[1693588774566,5.23503987,213.48,212.74,0.86412522]
[1693588774761,0.17255844,213.47,212.74,0.86412522]
[1693588775967,5.23503987,213.47,212.74,0.86412522]
[1693588776165,5.23503987,213.47,212.73,0.86412522]
[1693588776166,0.17255844,213.46,212.73,0.86412522]
[1693588776361,0.17255844,213.46,212.74,0.86412522]
[1693588776562,0.17255844,213.47,212.74,0.86412522]
[1693588776763,0.17255844,213.46,212.74,0.86412522]
[1693588777067,0.17255844,213.45,212.74,0.86412522]
[1693588777266,0.17255844,213.47,212.74,0.86412522]
[1693588777467,0.17255844,213.44,212.73,0.86412522]
[1693588777669,0.17255844,213.43,212.73,0.86412522]
[1693588777860,5.06248143,213.48,212.73,0.86412522]
[1693588777861,0.17255844,213.47,212.73,0.86412522]
[1693588778363,0.17255844,213.47,212.73,0.94094781]
[1693588778564,0.17255844,213.47,212.74,0.86412522]
[1693588780168,5.23503987,213.47,212.74,0.86412522]
[1693588780368,0.17255844,213.46,212.74,0.86412522]
[1693588782166,0.17255844,213.46,212.74,0.94094781]
[1693588782469,0.17255844,213.46,212.75,0.86412522]
[1693588782765,5.23503987,213.46,212.76,0.86412522]
[1693588782970,0.17255844,213.45,212.75,0.86412522]
[1693588783170,0.17255844,213.45,212.77,0.86412522]
[1693588783470,0.17255844,213.45,212.78,0.86412522]
[1693588783688,0.17255844,213.45,212.76,0.86412522]
[1693588784365,5.06248143,213.42,212.77,0.07682259]
[1693588784565,0.17255844,213.41,212.78,0.86412522]
[1693588784764,0.17255844,213.41,212.56,3.75780136]
[1693588784765,0.17255844,213.41,212.72,0.07682259]
[1693588784972,0.17255844,213.41,212.73,0.86363961]
[1693588785473,7.087474,213.39,212.73,0.86363961]
[1693588785668,5.06248143,213.37,212.73,0.86363961]
[1693588785869,0.17255844,213.36,212.73,0.86363961]
[1693588786065,0.17255844,213.36,212.74,0.07682259]
[1693588786269,0.17255844,213.36,212.75,0.86363961]
[1693588787071,5.06248143,213.35,212.75,0.86363961]
[1693588787274,0.17255844,213.34,212.75,0.86363961]
[1693588788171,0.17255844,213.34,212.79,0.07682259]
[1693588788370,0.17255844,213.38,212.8,0.9404622]
[1693588788673,0.17255844,213.37,212.81,0.86363961]
[1693588789172,0.17255844,213.36,212.81,0.86363961]
[1693588789372,0.17255844,213.39,212.81,0.86363961]
[1693588790174,5.23503987,213.39,212.81,0.9404622]
[1693588790472,0.17255844,213.38,212.82,0.86363961]
[1693588790674,0.17255844,213.39,212.82,0.86363961]
[1693588791774,0.17255844,213.39,212.81,0.07682259]
[1693588791975,0.17255844,213.39,212.82,0.86335227]
[1693588792173,5.23503987,213.39,212.82,0.86335227]
[1693588792374,0.17255844,213.38,212.82,0.86335227]
[1693588793274,0.17255844,213.38,212.82,0.94017486]
[1693588793575,5.23503987,213.38,212.82,0.07682259]
[1693588793777,0.17255844,213.37,212.82,0.07682259]
[1693588794977,0.17255844,213.37,212.81,0.07682259]
[1693588795177,0.17255844,213.37,212.82,0.07682259]
[1693588795378,5.06248143,213.36,212.83,0.07682259]
[1693588795673,0.17255844,213.35,212.83,0.07682259]
[1693588796277,5.23503987,213.35,212.85,0.07682259]
[1693588796478,0.17255844,213.34,212.85,0.07682259]
[1693588796878,0.17255844,213.34,212.84,0.07682259]
[1693588797379,0.17255844,213.34,212.85,0.07682259]
[1693588798180,0.17255844,213.34,212.86,0.07682259]
[1693588798582,0.17255844,213.34,212.85,0.07682259]
[1693588799083,5.06248143,213.33,212.86,0.07682259]
[1693588799282,0.17255844,213.32,212.86,0.07682259]
[1693588799581,5.23503987,213.32,212.85,0.07682259]
[1693588799782,0.17255844,213.31,212.85,0.07682259]
[1693588800778,5.23503987,213.31,212.85,0.07682259]
[1693588800983,0.17255844,213.3,212.84,0.07682259]
[1693588803585,0.17255844,213.3,212.79,0.07682259]
[1693588803786,0.17255844,213.3,212.78,0.07682259]
[1693588804186,7.087474,213.27,212.78,0.07682259]
[1693588804386,5.23503987,213.26,212.76,0.07682259]
[1693588804580,0.17255844,213.25,212.76,0.07682259]
[1693588805183,0.17255844,213.25,212.75,0.07682259]
[1693588805587,0.17255844,213.25,212.74,0.07682259]
[1693588805787,0.17255844,213.25,212.72,0.07682259]
[1693588806186,5.23503987,213.25,212.73,0.07682259]
[1693588806489,0.17255844,213.24,212.72,0.07682259]
[1693588807482,0.17255844,213.24,212.73,0.86369346]
[1693588807786,0.17255844,213.23,212.74,0.86369346]
[1693588807979,0.17255844,213.26,212.74,0.86369346]
[1693588808182,0.17255844,213.25,212.74,0.86369346]
[1693588808381,0.17255844,213.24,212.72,0.07682259]
[1693588808688,0.17255844,213.23,212.73,0.86363579]
[1693588808888,7.087474,213.31,212.73,0.94045838]
[1693588808889,5.23503987,213.27,212.73,0.94045838]
[1693588809090,0.17255844,213.26,212.74,0.86363579]
[1693588809589,0.17255844,213.26,212.73,0.86363579]
[1693588809888,5.23503987,213.26,212.74,0.86362312]
[1693588810085,0.17255844,213.25,212.73,0.86362312]
[1693588810287,0.17255844,213.25,212.74,0.8636432]
[1693588810588,0.17255844,213.25,212.71,0.07682259]
[1693588810788,0.17255844,213.25,212.72,0.86364925]
[1693588810989,5.23503987,213.25,212.72,0.86364925]
[1693588811189,0.17255844,213.24,212.71,0.86364925]
[1693588811388,0.17255844,213.24,212.72,0.86364925]
[1693588811588,0.17255844,213.24,212.69,0.07682259]
[1693588811589,0.17255844,213.24,212.73,0.86364925]
[1693588811891,0.17255844,213.24,212.74,0.86364925]
[1693588812085,0.17255844,213.25,212.71,0.86364925]
[1693588812286,0.17255844,213.24,212.72,0.86363797]
[1693588812482,0.17255844,213.25,212.71,0.86363797]
[1693588812686,0.17255844,213.24,212.72,0.86363797]
[1693588812886,0.17255844,213.25,212.71,0.86363797]
[1693588813089,0.17255844,213.24,212.72,0.86363797]
[1693588813289,0.17255844,213.25,212.71,0.94046056]
[1693588813489,0.17255844,213.24,212.73,0.86363797]
[1693588813690,0.17255844,213.26,212.74,0.86363797]
[1693588813889,0.17255844,213.26,212.75,0.86363797]
[1693588814092,0.17255844,213.26,212.71,0.07682259]
[1693588814291,0.17255844,213.26,212.72,0.86360847]
[1693588815293,0.17255844,213.26,212.73,0.86360847]
[1693588815485,5.23503987,213.26,212.71,0.94043106]
[1693588815685,0.17255844,213.25,212.72,0.86360847]